lending/lending_fUSD_20251116
["ID","MTS","AMOUNT","RATE_DAILY","PERIOD"]
[394150047,1763325048988,-300.0,0.00039614,2]
[394150048,1763325048998,-300.0,0.00039617,2]
[394150049,1763325049007,-500.0,0.00039623,2]
[394150050,1763325049017,-300.0,0.00039641,2]
[394150051,1763325049027,-700.0,0.00039653,30]
[394150052,1763325049036,-567.71,0.00039654,2]
[394150053,1763325049045,-300.0,0.00039654,2]
[394150054,1763325049054,-150.0,0.00039659,7]
[394150055,1763325049064,-300.0,0.00039667,2]
[394150056,1763325049072,-780.53157,0.00039688,30]
[394150057,1763325049082,-4784.08830427,0.0003969,2]
[394150058,1763325049091,-168.67952689,0.0003969,13]
[394150059,1763325049102,-300.0,0.0003969,2]
[394150060,1763325049112,-311.81387858,0.00039693,2]
[394150061,1763325049123,-700.0,0.00039694,30]
[394150062,1763325049133,-300.0,0.00039694,2]
[394150063,1763325049142,-500.0,0.00039699,30]
[394150064,1763325049152,-300.0,0.00039712,2]
[394150065,1763325049162,-300.0,0.00039714,2]
[394150066,1763325049174,-300.0,0.00039717,2]
[394150067,1763325049184,-300.0,0.00039719,2]
[394150068,1763325049194,-300.0,0.00039724,2]
[394150069,1763325049207,-1000.0,0.00039726,14]
[394150070,1763325049216,-800.0,0.00039729,30]
[394150071,1763325049226,-300.0,0.0003973,2]
[394150072,1763325049236,-1000.0,0.00039737,2]
[394150073,1763325049247,-300.0,0.00039738,2]
[394150074,1763325049256,-500.0,0.0003975,30]
[394150075,1763325049267,-300.0,0.0003976,2]
[394150076,1763325049276,-300.0,0.00039762,2]
[394150077,1763325049287,-300.0,0.00039766,2]
[394150078,1763325049296,-300.0,0.00039769,2]
[394150079,1763325049306,-300.0,0.00039774,2]
[394150080,1763325049315,-300.0,0.00039777,2]
[394150081,1763325049326,-300.0,0.0003978,2]
[394150082,1763325049335,-29561.0,0.00039781,120]
[394150083,1763325049344,-300.0,0.00039788,2]
[394150084,1763325049353,-601.42132168,0.00039789,7]
[394150085,1763325049363,-500.0,0.00039789,120]
[394150086,1763325049372,-500.0,0.00039789,120]
[394150087,1763325049381,-150.0,0.00039789,20]
[394150088,1763325049390,-500.0,0.00039789,120]
[394150089,1763325049399,-300.0,0.00039792,2]
[394150090,1763325049409,-660.30321015,0.00039798,2]
[394150091,1763325049418,-407545.2857649,0.000398,7]
[394150092,1763325049427,-168.1,0.000398,14]
[394150093,1763325049436,-150.0,0.000398,23]
[394150094,1763325049445,-216.1,0.000398,25]
[394150095,1763325049454,-643550.99446357,0.000398,7]
[394150096,1763325049463,-167.77666526,0.000398,120]
[394150097,1763325049472,-150.0,0.000398,2]
[394150098,1763325049481,-1137.41857952,0.000398,2]
[394150099,1763325049491,-150.0,0.000398,2]
[394150100,1763325049499,-500.41611066,0.000398,2]
[394150101,1763325049509,-150.0,0.000398,2]
[394150102,1763325049521,-2515.7180551,0.000398,2]
[394150103,1763325049531,-151.0,0.000398,120]
[394150104,1763325049540,-151.0,0.000398,120]
[394150105,1763325049549,-151.0,0.000398,10]
[394150106,1763325049558,-151.0,0.000398,120]
[394150107,1763325049567,-151.0,0.000398,120]
[394150108,1763325049575,-151.0,0.000398,120]
[394150109,1763325049584,-151.0,0.000398,120]
[394150110,1763325049593,-151.0,0.000398,120]
[394150111,1763325049602,-151.0,0.000398,120]
[394150112,1763325049611,-151.0,0.000398,120]
[394150113,1763325049620,-151.0,0.000398,120]
[394150114,1763325049629,-151.0,0.000398,120]
[394150115,1763325049638,-151.0,0.000398,120]
[394150116,1763325049647,-151.0,0.000398,120]
[394150117,1763325049656,-151.0,0.000398,120]
[394150118,1763325049664,-202.538615,0.000398,120]
[394150119,1763325049674,-151.0,0.000398,120]
[394150120,1763325049683,-202.538615,0.000398,120]
[394150121,1763325049692,-151.0,0.000398,120]
[394150122,1763325049701,-202.538615,0.000398,120]
[394150123,1763325049710,-151.0,0.000398,120]
[394150124,1763325049719,-217.248841,0.000398,120]
[394150125,1763325049728,-202.538615,0.000398,120]
[394150126,1763325049738,-151.0,0.000398,120]
[394150127,1763325049747,-151.0,0.000398,120]
[394150128,1763325049756,-174.145706,0.000398,120]
[394150129,1763325049767,-170.456547,0.000398,120]
[394150130,1763325049776,-281.145595,0.000398,120]
[394150131,1763325049785,-151.0,0.000398,120]
[394150132,1763325049795,-151.0,0.000398,15]
[394150133,1763325049804,-151.0,0.000398,15]
[394150134,1763325049813,-151.0,0.000398,15]
[394150135,1763325049822,-151.0,0.000398,120]
[394150136,1763325049832,-151.0,0.000398,120]
[394150137,1763325049841,-151.0,0.000398,120]
[394150138,1763325049850,-151.0,0.000398,120]
[394150139,1763325049860,-275.190011,0.000398,120]
[394150140,1763325049869,-535.426741,0.000398,120]
[394150141,1763325049878,-535.426741,0.000398,120]
[394150142,1763325049889,-151.0,0.000398,120]
[394150143,1763325049898,-535.426741,0.000398,120]
[394150144,1763325049908,-151.0,0.000398,120]
[394150145,1763325049918,-535.426741,0.000398,120]
[394150146,1763325049927,-151.0,0.000398,120]
[394150147,1763325049937,-151.0,0.000398,120]
[394150148,1763325049946,-151.0,0.000398,120]
[394150149,1763325049955,-151.0,0.000398,120]
[394150150,1763325049965,-270.835263,0.000398,120]
[394150151,1763325049974,-151.0,0.000398,120]
[394150152,1763325049984,-151.0,0.000398,120]
[394150153,1763325049993,-151.0,0.000398,120]
[394150154,1763325050003,-151.0,0.000398,120]
[394150155,1763325050013,-151.0,0.000398,120]
[394150156,1763325050022,-151.0,0.000398,120]
[394150157,1763325050031,-151.0,0.000398,120]
[394150158,1763325050040,-151.0,0.000398,120]
[394150159,1763325050050,-151.0,0.000398,120]
[394150160,1763325050059,-151.0,0.000398,120]
[394150161,1763325050068,-151.0,0.000398,120]
[394150162,1763325050078,-151.0,0.000398,120]
[394150163,1763325050087,-151.0,0.000398,120]
[394150164,1763325050097,-151.0,0.000398,120]
[394150165,1763325050106,-151.0,0.000398,120]
[394150166,1763325050116,-177.820604,0.000398,120]
[394150167,1763325050125,-177.820604,0.000398,120]
[394150168,1763325050135,-151.0,0.000398,120]
[394150169,1763325050144,-151.0,0.000398,120]
[394150170,1763325050154,-177.820604,0.000398,120]
[394150171,1763325050163,-177.820604,0.000398,120]
[394150172,1763325050173,-151.0,0.000398,120]
[394150173,1763325050183,-151.0,0.000398,120]
[394150174,1763325050192,-151.0,0.000398,120]
[394150175,1763325050203,-151.0,0.000398,120]
[394150176,1763325050222,-151.0,0.000398,120]
[394150177,1763325050232,-151.0,0.000398,120]
[394150178,1763325050241,-151.0,0.000398,120]
[394150179,1763325050252,-151.0,0.000398,120]
[394150180,1763325050262,-151.0,0.000398,120]
[394150181,1763325050274,-151.0,0.000398,120]
[394150182,1763325050283,-237.820981,0.000398,120]
[394150183,1763325050293,-614.064354,0.000398,120]
[394150184,1763325050302,-264.528737,0.000398,120]
[394150185,1763325050311,-614.064354,0.000398,120]
[394150186,1763325050321,-151.0,0.000398,120]
[394150187,1763325050330,-614.064354,0.000398,120]
[394150188,1763325050340,-614.064354,0.000398,120]
[394150189,1763325050350,-151.0,0.000398,120]
[394150190,1763325050359,-151.0,0.000398,120]
[394150191,1763325050369,-151.0,0.000398,120]
[394150192,1763325050379,-151.0,0.000398,120]
[394150193,1763325050388,-151.0,0.000398,120]
[394150194,1763325050398,-151.0,0.000398,120]
[394150195,1763325050407,-151.0,0.000398,120]
[394150196,1763325050417,-218.015669,0.000398,120]
[394150197,1763325050427,-151.0,0.000398,120]
[394150198,1763325050436,-151.0,0.000398,120]
[394150199,1763325050447,-151.0,0.000398,120]
[394150200,1763325050457,-151.0,0.000398,120]
[394150201,1763325050469,-160.964689,0.000398,120]
[394150202,1763325050479,-1695.742304,0.000398,120]
[394150203,1763325050491,-151.0,0.000398,120]
[394150204,1763325050502,-151.0,0.000398,120]
[394150205,1763325050512,-1695.742304,0.000398,120]
[394150206,1763325050522,-1695.742304,0.000398,120]
[394150207,1763325050531,-1695.742304,0.000398,120]
[394150208,1763325050540,-386.376677,0.000398,120]
[394150209,1763325050550,-386.376677,0.000398,120]
[394150210,1763325050559,-386.376677,0.000398,120]
[394150211,1763325050568,-386.376677,0.000398,120]
[394150212,1763325050578,-151.0,0.000398,120]
[394150213,1763325050587,-199.757326,0.000398,120]
[394150214,1763325050596,-199.757326,0.000398,120]
[394150215,1763325050605,-199.757326,0.000398,120]
[394150216,1763325050614,-199.757326,0.000398,120]
[394150217,1763325050624,-151.0,0.000398,120]
[394150218,1763325050634,-151.0,0.000398,120]
[394150219,1763325050644,-151.0,0.000398,120]
[394150220,1763325050653,-151.0,0.000398,120]
[394150221,1763325050662,-151.0,0.000398,120]
[394150222,1763325050672,-174.433953,0.000398,120]
[394150223,1763325050681,-174.433953,0.000398,120]
[394150224,1763325050690,-174.433953,0.000398,120]
[394150225,1763325050699,-174.433953,0.000398,120]
[394150226,1763325050710,-206.105128,0.000398,120]
[394150227,1763325050720,-235.011081,0.000398,120]
[394150228,1763325050730,-235.011081,0.000398,120]
[394150229,1763325050739,-151.0,0.000398,120]
[394150230,1763325050749,-235.011081,0.000398,120]
[394150231,1763325050758,-188.279895,0.000398,120]
[394150232,1763325050770,-235.011081,0.000398,120]
[394150233,1763325050779,-188.279895,0.000398,120]
[394150234,1763325050788,-151.0,0.000398,120]
[394150235,1763325050798,-188.279895,0.000398,120]
[394150236,1763325050808,-151.0,0.000398,120]
[394150237,1763325050818,-151.0,0.000398,120]
[394150238,1763325050827,-188.279895,0.000398,120]
[394150239,1763325050838,-151.0,0.000398,120]
[394150240,1763325050848,-151.0,0.000398,120]
[394150241,1763325050857,-151.0,0.000398,120]
[394150242,1763325050867,-152.02,0.00039846,120]
[394150243,1763325050876,-1000.0,0.00039883,30]
[394150244,1763325050885,-152.48,0.00039884,120]
[394150245,1763325050894,-2736.42,0.00039887,2]
[394150246,1763325050903,-16609.53499127,0.00039888,2]
[394150247,1763325050912,-780.53157,0.00039888,30]
[394150248,1763325050922,-500.0,0.0003989,30]
[394150249,1763325050931,-500.0,0.00039897,2]
[394150250,1763325050940,-173.12451432,0.000399,120]
[394150251,1763325050949,-1400.0,0.000399,14]
[394150252,1763325050958,-155.27,0.000399,60]
[394150253,1763325050967,-1000.0,0.00039907,30]
[394150254,1763325050976,-150.0,0.0003994,120]
[394150255,1763325050986,-152.02,0.00039946,120]
[394150256,1763325050995,-311.81387855,0.00039968,2]
[394150257,1763325051004,-926.41069,0.0003997,2]
[394150258,1763325051014,-152.48,0.00039984,120]
[394150259,1763325051023,-49807.19755321,0.0003999,2]
[394150260,1763325051032,-182.483269,0.0003999,120]
[394150261,1763325051042,-270.577465,0.0003999,120]
[394150262,1763325051051,-151.0,0.0003999,120]
[394150263,1763325051060,-151.0,0.0003999,120]
[394150264,1763325051069,-151.0,0.0003999,120]
[394150265,1763325051078,-151.0,0.0003999,120]
[394150266,1763325051087,-159.588753,0.0003999,120]
[394150267,1763325051096,-151.0,0.0003999,120]
[394150268,1763325051105,-151.811139,0.0003999,120]
[394150269,1763325051115,-151.0,0.0003999,30]
[394150270,1763325051124,-151.0,0.0003999,60]
[394150271,1763325051133,-151.0,0.0003999,120]
[394150272,1763325051142,-156.089534,0.0003999,120]
[394150273,1763325051151,-151.0,0.0003999,120]
[394150274,1763325051160,-151.0,0.0003999,120]
[394150275,1763325051169,-151.0,0.0003999,120]
[394150276,1763325051179,-151.0,0.0003999,120]
[394150277,1763325051188,-151.0,0.0003999,120]
[394150278,1763325051197,-151.0,0.0003999,90]
[394150279,1763325051207,-151.0,0.0003999,120]
[394150280,1763325051218,-184.808736,0.0003999,120]
[394150281,1763325051228,-152.069191,0.0003999,5]
[394150282,1763325051237,-151.0,0.0003999,120]
[394150283,1763325051246,-151.0,0.0003999,120]
[394150284,1763325051257,-151.0,0.0003999,120]
[394150285,1763325051267,-166.199414,0.0003999,120]
[394150286,1763325051277,-159.659107,0.0003999,120]
[394150287,1763325051287,-158.378135,0.0003999,120]
[394150288,1763325051297,-151.0,0.0003999,120]
[394150289,1763325051306,-151.0,0.0003999,120]
[394150290,1763325051315,-151.0,0.0003999,120]
[394150291,1763325051325,-202.538615,0.0003999,120]
[394150292,1763325051334,-151.0,0.0003999,120]
[394150293,1763325051343,-202.538615,0.0003999,120]
[394150294,1763325051352,-151.0,0.0003999,120]
[394150295,1763325051362,-202.538615,0.0003999,120]
[394150296,1763325051371,-151.0,0.0003999,120]
[394150297,1763325051380,-202.538615,0.0003999,120]
[394150298,1763325051389,-151.0,0.0003999,120]
[394150299,1763325051398,-151.0,0.0003999,120]
[394150300,1763325051407,-151.0,0.0003999,120]
[394150301,1763325051416,-151.0,0.0003999,15]
[394150302,1763325051425,-151.0,0.0003999,15]
[394150303,1763325051434,-151.0,0.0003999,15]
[394150304,1763325051443,-151.0,0.0003999,120]
[394150305,1763325051454,-151.0,0.0003999,120]
[394150306,1763325051464,-157.055438,0.0003999,120]
[394150307,1763325051474,-151.0,0.0003999,120]
[394150308,1763325051484,-151.0,0.0003999,60]
[394150309,1763325051493,-151.0,0.0003999,120]
[394150310,1763325051502,-151.0,0.0003999,120]
[394150311,1763325051511,-299.701289,0.0003999,120]
[394150312,1763325051521,-299.701289,0.0003999,120]
[394150313,1763325051530,-299.701289,0.0003999,120]
[394150314,1763325051543,-299.701289,0.0003999,120]
[394150315,1763325051552,-151.0,0.0003999,120]
[394150316,1763325051561,-160.745587,0.0003999,120]
[394150317,1763325051570,-151.0,0.0003999,120]
[394150318,1763325051717,-151.0,0.0003999,120]
[394150319,1763325051727,-151.0,0.0003999,120]
[394150320,1763325051736,-151.0,0.0003999,120]
[394150321,1763325051745,-151.0,0.0003999,120]
[394150322,1763325051754,-151.0,0.0003999,120]
[394150323,1763325051763,-151.0,0.0003999,120]
[394150324,1763325051772,-238.181119,0.0003999,120]
[394150325,1763325051782,-164.04266,0.0003999,120]
[394150326,1763325051792,-151.0,0.0003999,120]
[394150327,1763325051802,-151.0,0.0003999,95]
[394150328,1763325051811,-151.0,0.0003999,95]
[394150329,1763325051821,-429.518949,0.0003999,28]
[394150330,1763325051830,-429.518949,0.0003999,28]
[394150331,1763325051839,-429.518949,0.0003999,28]
[394150332,1763325051848,-429.518949,0.0003999,28]
[394150333,1763325051858,-219.036736,0.0003999,120]
[394150334,1763325051871,-151.0,0.0003999,120]
[394150335,1763325051881,-151.0,0.0003999,120]
[394150336,1763325051890,-151.0,0.0003999,120]
[394150337,1763325051899,-535.426741,0.0003999,120]
[394150338,1763325051909,-535.426741,0.0003999,120]
[394150339,1763325051918,-535.426741,0.0003999,120]
[394150340,1763325051927,-151.0,0.0003999,120]
[394150341,1763325051938,-535.426741,0.0003999,120]
[394150342,1763325051947,-151.0,0.0003999,120]
[394150343,1763325051956,-151.0,0.0003999,120]
[394150344,1763325051965,-198.849847,0.0003999,120]
[394150345,1763325051974,-151.0,0.0003999,120]
[394150346,1763325051983,-151.0,0.0003999,120]
[394150347,1763325051992,-151.0,0.0003999,120]
[394150348,1763325052002,-151.0,0.0003999,120]
[394150349,1763325052012,-151.0,0.0003999,120]
[394150350,1763325052021,-151.0,0.0003999,120]
[394150351,1763325052031,-151.0,0.0003999,120]
[394150352,1763325052039,-151.0,0.0003999,120]
[394150353,1763325052049,-151.0,0.0003999,120]
[394150354,1763325052058,-151.0,0.0003999,120]
[394150355,1763325052067,-151.0,0.0003999,120]
[394150356,1763325052076,-151.0,0.0003999,120]
[394150357,1763325052086,-151.0,0.0003999,120]
[394150358,1763325052095,-151.0,0.0003999,120]
[394150359,1763325052104,-284.222104,0.0003999,120]
[394150360,1763325052115,-177.820604,0.0003999,120]
[394150361,1763325052124,-177.820604,0.0003999,120]
[394150362,1763325052134,-151.0,0.0003999,120]
[394150363,1763325052143,-151.0,0.0003999,120]
[394150364,1763325052152,-177.820604,0.0003999,120]
[394150365,1763325052163,-177.820604,0.0003999,120]
[394150366,1763325052172,-151.0,0.0003999,120]
[394150367,1763325052181,-151.0,0.0003999,120]
[394150368,1763325052190,-151.0,0.0003999,120]
[394150369,1763325052200,-151.0,0.0003999,120]
[394150370,1763325052213,-151.0,0.0003999,120]
[394150371,1763325052222,-151.0,0.0003999,120]
[394150372,1763325052231,-151.0,0.0003999,120]
[394150373,1763325052240,-151.0,0.0003999,120]
[394150374,1763325052250,-151.0,0.0003999,120]
[394150375,1763325052260,-614.064354,0.0003999,120]
[394150376,1763325052270,-614.064354,0.0003999,120]
[394150377,1763325052279,-614.064354,0.0003999,120]
[394150378,1763325052291,-614.064354,0.0003999,120]
[394150379,1763325052301,-151.0,0.0003999,120]
[394150380,1763325052311,-151.0,0.0003999,120]
[394150381,1763325052320,-151.0,0.0003999,120]
[394150382,1763325052330,-151.0,0.0003999,120]
[394150383,1763325052339,-151.0,0.0003999,120]
[394150384,1763325052349,-151.0,0.0003999,120]
[394150385,1763325052359,-151.0,0.0003999,120]
[394150386,1763325052368,-151.0,0.0003999,120]
[394150387,1763325052377,-151.0,0.0003999,120]
[394150388,1763325052387,-235.011081,0.0003999,120]
[394150389,1763325052396,-235.011081,0.0003999,120]
[394150390,1763325052406,-151.0,0.0003999,120]
[394150391,1763325052415,-235.011081,0.0003999,120]
[394150392,1763325052424,-235.011077,0.0003999,120]
[394150393,1763325052434,-151.0,0.0003999,120]
[394150394,1763325052443,-151.0,0.0003999,120]
[394150395,1763325052452,-151.0,0.0003999,120]
[394150396,1763325052461,-151.0,0.0003999,120]
[394150397,1763325052471,-7999.999999,0.00039999,2]
[394150398,1763325052480,-1000.0,0.0004,2]
[394150399,1763325052490,-150.0,0.0004,5]
[394150400,1763325052500,-44396.0,0.0004,2]
[394150401,1763325052509,-770.0,0.0004,30]
[394150402,1763325052520,-245.9,0.0004,30]
[394150403,1763325052530,-1328.0,0.0004,30]
[394150404,1763325052539,-295.74190474,0.0004,30]
[394150405,1763325052549,-2722.81560857,0.0004,30]
[394150406,1763325052560,-1026.16616422,0.0004,14]
[394150407,1763325052569,-421.39105876,0.0004,120]
[394150408,1763325052578,-1256.93459427,0.0004,120]
[394150409,1763325052588,-186.23907567,0.0004,10]
[394150410,1763325052597,-177.0,0.0004,30]
[394150411,1763325052607,-378.0,0.0004,30]
[394150412,1763325052616,-4000.0,0.0004,2]
[394150413,1763325052626,-227.0,0.0004,30]
[394150414,1763325052635,-189.0,0.0004,30]
[394150415,1763325052644,-150.0,0.0004,60]
[394150416,1763325052654,-598.73,0.0004,30]
[394150417,1763325052663,-909.9,0.0004,30]
[394150418,1763325052673,-377.0,0.0004,120]
[394150419,1763325052682,-1006.0,0.0004,30]
[394150420,1763325052692,-1000.0,0.0004,14]
[394150421,1763325052702,-700.0,0.00040008,30]
[394150422,1763325052712,-700.0,0.00040031,30]
[394150423,1763325052722,-152.02,0.00040046,120]
[394150424,1763325052731,-500.0,0.00040054,30]
[394150425,1763325052741,-152.48,0.00040084,120]
[394150426,1763325052750,-780.53157,0.00040088,30]
[394150427,1763325052760,-500.0,0.00040106,30]
[394150428,1763325052771,-152.02,0.00040146,120]
[394150429,1763325052780,-2736.42,0.00040161,2]
[394150430,1763325052790,-500.0,0.00040171,2]
[394150431,1763325052799,-500.0,0.00040174,30]
[394150432,1763325052808,-300.0,0.00040178,99]
[394150433,1763325052817,-660.30321015,0.00040183,15]
[394150434,1763325052826,-152.48,0.00040184,120]
[394150435,1763325052836,-311.81387855,0.00040242,2]
[394150436,1763325052845,-500.0,0.00040244,30]
[394150437,1763325052854,-152.02,0.00040246,120]
[394150438,1763325052863,-1000.0,0.00040259,30]
[394150439,1763325052873,-1000.0,0.00040273,2]
[394150440,1763325052882,-345.0,0.00040274,90]
[394150441,1763325052892,-1000.0,0.00040274,14]
[394150442,1763325052901,-152.48,0.00040284,120]
[394150443,1763325052911,-780.53157,0.00040288,30]
[394150444,1763325052920,-500.0,0.00040298,30]
[394150445,1763325052930,-152.02,0.00040346,120]
[394150446,1763325052940,-152.48,0.00040384,120]
[394150447,1763325052949,-1000.0,0.0004039,30]
[394150448,1763325052959,-416.71,0.00040416,2]
[394150449,1763325052968,-416.71,0.00040416,2]
[394150450,1763325052978,-2736.42,0.00040435,2]
[394150451,1763325052988,-500.0,0.00040435,30]
[394150452,1763325052997,-500.0,0.00040445,2]
[394150453,1763325053007,-152.02,0.00040446,120]
[394150454,1763325053017,-152.48,0.00040484,120]
[394150455,1763325053026,-780.53157,0.00040488,30]
[394150456,1763325053036,-209.10122154,0.00040489,12]
[394150457,1763325053045,-1400.0,0.000405,14]
[394150458,1763325053055,-311.81387855,0.00040517,2]
[394150459,1763325053065,-152.02,0.00040546,120]
[394150460,1763325053075,-1000.0,0.00040547,2]
[394150461,1763325053085,-1000.0,0.00040548,14]
[394150462,1763325053095,-660.30321015,0.00040569,15]
[394150463,1763325053105,-700.0,0.0004058,30]
[394150464,1763325053115,-152.48,0.00040584,120]
[394150465,1763325053125,-1400.0,0.000406,14]
[394150466,1763325053135,-800.0,0.000406,14]
[394150467,1763325053144,-500.0,0.00040635,30]
[394150468,1763325053155,-152.02,0.00040646,120]
[394150469,1763325053164,-150.0,0.00040648,120]
[394150470,1763325053174,-500.0,0.00040672,30]
[394150471,1763325053183,-152.48,0.00040684,120]
[394150472,1763325053193,-2500.0,0.00040685,14]
[394150473,1763325053204,-780.53157,0.00040688,30]
[394150474,1763325053217,-2000.0,0.000407,2]
[394150475,1763325053227,-1400.0,0.000407,14]
[394150476,1763325053236,-800.0,0.000407,14]
[394150477,1763325053246,-2736.42,0.00040709,2]
[394150478,1763325053256,-170.5392958,0.00040717,30]
[394150479,1763325053267,-500.0,0.00040719,2]
[394150480,1763325053277,-416.71,0.00040744,2]
[394150481,1763325053288,-416.71,0.00040744,2]
[394150482,1763325053298,-416.71,0.00040744,2]
[394150483,1763325053307,-416.71,0.00040744,2]
[394150484,1763325053316,-416.71,0.00040744,2]
[394150485,1763325053325,-416.71,0.00040744,2]
[394150486,1763325053335,-416.71,0.00040744,2]
[394150487,1763325053345,-416.71,0.00040744,2]
[394150488,1763325053354,-416.71,0.00040744,2]
[394150489,1763325053364,-416.71,0.00040744,2]
[394150490,1763325053375,-416.71,0.00040744,2]
[394150491,1763325053385,-416.71,0.00040744,2]
[394150492,1763325053395,-416.71,0.00040744,2]
[394150493,1763325053405,-416.71,0.00040744,2]
[394150494,1763325053415,-416.71,0.00040744,2]
[394150495,1763325053424,-416.71,0.00040744,2]
[394150496,1763325053434,-416.71,0.00040744,2]
[394150497,1763325053444,-416.71,0.00040744,2]
[394150498,1763325053453,-416.71,0.00040744,2]
[394150499,1763325053463,-1287.7,0.00040745,30]
[394150500,1763325053473,-500.0,0.00040746,30]
[394150501,1763325053483,-152.02,0.00040746,120]
[394150502,1763325053541,-500.0,0.00040782,30]
[394150503,1763325053551,-152.48,0.00040784,120]
[394150504,1763325053561,-311.81387855,0.00040791,2]
[394150505,1763325053570,-700.0,0.00040792,30]
[394150506,1763325053580,-2364.0,0.000408,14]
[394150507,1763325053589,-1200.0,0.000408,14]
[394150508,1763325053599,-800.0,0.00040816,30]
[394150509,1763325053608,-1000.0,0.00040821,2]
[394150510,1763325053619,-1000.0,0.00040822,14]
[394150511,1763325053628,-152.0,0.00040842,7]
[394150512,1763325053638,-152.02,0.00040846,120]
[394150513,1763325053648,-800.0,0.00040847,30]
[394150514,1763325053658,-152.48,0.00040884,120]
[394150515,1763325053667,-230.85,0.00040886,120]
[394150516,1763325053676,-780.53157,0.00040888,30]
[394150517,1763325053685,-624.52493668,0.0004089,120]
[394150518,1763325053695,-500.0,0.00040897,30]
[394150519,1763325053704,-800.0,0.00040923,30]
[394150520,1763325053713,-500.0,0.00040932,30]
[394150521,1763325053721,-152.02,0.00040946,120]
[394150522,1763325053730,-660.30321015,0.00040954,15]
[394150523,1763325053739,-2736.42,0.00040983,2]
[394150524,1763325053748,-152.48,0.00040984,120]
[394150525,1763325053758,-500.0,0.00040988,30]
[394150526,1763325053768,-500.0,0.00040993,2]
[394150527,1763325053778,-150.0,0.00041,5]
[394150528,1763325053787,-1152.36375515,0.00041,30]
[394150529,1763325053796,-598.08922453,0.00041,120]
[394150530,1763325053806,-378.0,0.00041,30]
[394150531,1763325053816,-227.0,0.00041,30]
[394150532,1763325053825,-189.0,0.00041,30]
[394150533,1763325053834,-150.0,0.00041,60]
[394150534,1763325053844,-1006.0,0.00041,30]
[394150535,1763325053853,-500.0,0.0004102,2]
[394150536,1763325053863,-500.0,0.00041035,30]
[394150537,1763325053873,-700.0,0.00041041,30]
[394150538,1763325053882,-152.02,0.00041046,120]
[394150539,1763325053892,-700.0,0.00041048,30]
[394150540,1763325053902,-311.81387855,0.00041066,2]
[394150541,1763325053911,-182.08,0.00041066,2]
[394150542,1763325053921,-500.0,0.00041081,30]
[394150543,1763325053931,-152.48,0.00041084,120]
[394150544,1763325053941,-780.53157,0.00041088,30]
[394150545,1763325053951,-1000.0,0.00041095,2]
[394150546,1763325053960,-500.0,0.00041096,120]